fUST/lending_fUST_20240407
["ID","MTS","AMOUNT","RATE_DAILY","PERIOD"]
[321723911,1712469033343,-266.120348,0.00024935,2]
[321723912,1712469033354,-158.0,0.00025,2]
[321723913,1712469033364,-258.70973215,0.00025059,2]
[321723914,1712469033374,-442.48211575,0.00025092,2]
[321723915,1712469033385,-500.0,0.00025092,2]
[321723916,1712469033397,-500.0,0.00025093,2]
[321723917,1712469033408,-256.07928728,0.00025093,2]
[321723918,1712469033420,-500.0,0.00025093,2]
[321723919,1712469033432,-266.120348,0.00025093,2]
[321723920,1712469033444,-266.120348,0.00025093,2]
[321723921,1712469033455,-982.83,0.00025093,2]
[321723922,1712469033466,-581.05,0.00025093,2]
[321723923,1712469033477,-528.79,0.00025093,2]
[321723924,1712469033488,-500.0,0.00025093,2]
[321723925,1712469033500,-1749.18925658,0.00025093,2]
[321724119,1712469626352,1377.54622482,0.00027307,30]
[321724122,1712469751388,-263.606952,0.00023984,2]
[321724123,1712469751409,-300.0,0.00024598,2]
[321724124,1712469751432,-300.0,0.00024598,2]
[321724125,1712469751454,-500.0,0.00024599,2]
[321724126,1712469751475,-500.0,0.00024599,2]
[321724127,1712469751497,-505.43961012,0.00024599,2]
[321724128,1712469751519,-500.0,0.00024599,2]
[321724129,1712469751543,-534.04494607,0.00024599,2]
[321724130,1712469751565,-500.0,0.00024599,2]
[321724131,1712469751586,-197.2708265,0.00024658,2]
[321724132,1712469751607,-500.0,0.00024818,2]
[321724133,1712469751630,-2021.5,0.00024818,2]
[321724134,1712469751651,-508.41,0.00024818,2]
[321724135,1712469751674,-2429.7,0.00024818,2]
[321724136,1712469751696,-500.0,0.00024818,2]
[321724137,1712469751717,-500.0,0.00024818,2]
[321724138,1712469751739,-500.0,0.00024818,2]
[321724139,1712469751761,-1008.17,0.00024818,2]
[321724140,1712469751782,-891.61,0.00024818,2]
[321724141,1712469751802,-500.0,0.00024818,2]
[321724142,1712469751822,-500.0,0.00024873,2]
[321724143,1712469751843,-531.085747,0.00024873,2]
[321724144,1712469751864,-174.10953986,0.00024992,2]
[321724145,1712469751885,-500.0,0.00025092,2]
[321724146,1712469751907,-2021.5,0.00025092,2]
[321724147,1712469751930,-508.41,0.00025092,2]
[321724148,1712469751953,-2429.7,0.00025092,2]
[321724149,1712469751975,-500.0,0.00025092,2]
[321724150,1712469751998,-500.0,0.00025092,2]
[321724151,1712469752020,-500.0,0.00025092,2]
[321724152,1712469752043,-1008.17,0.00025092,2]
[321724153,1712469752064,-891.61,0.00025092,2]
[321724154,1712469752087,-500.0,0.00025092,2]
[321724155,1712469752108,-500.0,0.00025147,2]
[321724156,1712469752130,-500.0,0.00025365,2]
[321724157,1712469752151,-708.05,0.00025365,2]
[321724158,1712469752175,-500.0,0.00025365,2]
[321724159,1712469752196,-500.0,0.00025366,2]
[321724160,1712469752219,-2021.5,0.00025366,2]
[321724161,1712469752240,-508.41,0.00025366,2]
[321724162,1712469752262,-500.0,0.00025366,2]
[321724163,1712469752284,-2429.7,0.00025366,2]
[321724164,1712469752306,-500.0,0.00025366,2]
[321724165,1712469752327,-500.0,0.00025366,2]
[321724166,1712469752349,-500.0,0.00025366,2]
[321724167,1712469752371,-500.0,0.00025366,2]
[321724168,1712469752497,-1008.17,0.00025366,2]
[321724169,1712469752519,-891.61,0.00025366,2]
[321724170,1712469752539,-500.0,0.00025366,2]
[321724171,1712469752560,-500.0,0.00025421,2]
[321724172,1712469752581,-323.49,0.00025638,2]
[321724173,1712469752604,-397.3,0.00025639,2]
[321724174,1712469752628,-708.05,0.00025639,2]
[321724175,1712469752650,-500.0,0.00025639,2]
[321724176,1712469752676,-631.92077222,0.0002564,2]
[321724177,1712469752697,-500.0,0.0002564,2]
[321724178,1712469752719,-2021.5,0.0002564,2]
[321724179,1712469752740,-508.41,0.0002564,2]
[321724180,1712469752762,-500.0,0.0002564,2]
[321724181,1712469752783,-2429.7,0.0002564,2]
[321724182,1712469752805,-500.0,0.0002564,2]
[321724183,1712469752827,-500.0,0.0002564,2]
[321724184,1712469752850,-500.0,0.0002564,2]
[321724185,1712469752872,-500.0,0.0002564,2]
[321724186,1712469752893,-1008.17,0.0002564,2]
[321724187,1712469752915,-891.61,0.0002564,2]
[321724188,1712469752937,-500.0,0.0002564,2]
[321724189,1712469752957,-500.0,0.00025695,2]
[321724190,1712469752979,-620.00224443,0.00025855,2]
[321724191,1712469753002,-592.0,0.000259,2]
[321724192,1712469753024,-708.05,0.00025913,2]
[321724193,1712469753046,-500.0,0.00025913,2]
[321724194,1712469753067,-500.0,0.00025914,2]
[321724195,1712469753093,-2021.5,0.00025914,2]
[321724196,1712469753114,-508.41,0.00025914,2]
[321724197,1712469753135,-500.0,0.00025914,2]
[321724198,1712469753156,-2429.7,0.00025914,2]
[321724199,1712469753180,-538.42,0.00025914,2]
[321724200,1712469753203,-500.0,0.00025914,2]
[321724201,1712469753225,-500.0,0.00025914,2]
[321724202,1712469753246,-500.0,0.00025914,2]
[321724203,1712469753268,-1008.17,0.00025914,2]
[321724204,1712469753289,-151.0,0.00025914,2]
[321724205,1712469753310,-151.0,0.00025914,2]
[321724206,1712469753331,-151.0,0.00025914,2]
[321724207,1712469753352,-151.0,0.00025914,2]
[321724208,1712469753373,-891.61,0.00025914,2]
[321724209,1712469753394,-500.0,0.00025914,2]
[321724210,1712469753415,-500.0,0.00025969,2]
[321724211,1712469753436,-708.05,0.00026187,2]
[321724212,1712469753457,-500.0,0.00026187,2]
[321724213,1712469753478,-500.0,0.00026188,2]
[321724214,1712469753504,-2021.5,0.00026188,2]
[321724215,1712469753529,-508.41,0.00026188,2]
[321724216,1712469753549,-368.99457226,0.00026188,2]
[321724217,1712469753572,-2429.7,0.00026188,2]
[321724218,1712469753593,-500.0,0.00026188,2]
[321724219,1712469753615,-500.0,0.00026188,2]
[321724220,1712469753636,-500.0,0.00026188,2]
[321724221,1712469753656,-1008.17,0.00026188,2]
[321724222,1712469753679,-151.0,0.00026188,2]
[321724223,1712469753700,-151.0,0.00026188,2]
[321724224,1712469753721,-891.61,0.00026188,2]
[321724225,1712469753742,-500.0,0.00026188,2]
[321724226,1712469753762,-192.16711124,0.00026243,2]
[321724227,1712469753785,-151.00906054,0.00026411,7]
[321724228,1712469753807,-708.05,0.00026461,2]
[321724229,1712469753828,-500.0,0.00026461,2]
[321724230,1712469753851,-500.0,0.00026462,2]
[321724231,1712469753873,-2021.5,0.00026462,2]
[321724232,1712469753896,-508.41,0.00026462,2]
[321724233,1712469753920,-2429.7,0.00026462,2]
[321724234,1712469753941,-116.93861776,0.00026462,2]
[321724244,1712469935046,-3000.0,0.00028,120]
[321724252,1712470068998,9022.0,0.000274,17]
[321724298,1712470233083,-632.15882222,0.00025364,2]
[321724300,1712470233092,-267.39812068,0.00025365,2]
[321724301,1712470233102,-502.50396045,0.00025365,2]
[321724302,1712470233114,-1721.03,0.00025366,2]
[321724303,1712470233124,-300.0,0.00025637,2]
[321724304,1712470233133,-151.18051448,0.00025637,2]
[321724305,1712470233161,-148.81948552,0.00025637,2]
[321724306,1712470233171,-114.78746648,0.00025638,2]
[321724307,1712470233186,-385.21253352,0.00025638,2]
[321724308,1712470233196,-500.0,0.00025638,2]
[321724309,1712470233206,-500.0,0.00025638,2]
[321724310,1712470233217,-285.7806584,0.00025638,2]
[321724311,1712470233229,-214.2193416,0.00025638,2]
[321724312,1712470233397,-1369.76886988,0.00025638,2]
[321724386,1712470244435,-62.13113012,0.00025638,2]
[321724387,1712470244444,-500.0,0.00025638,2]
[321724388,1712470244453,-500.0,0.00025638,2]
[321724389,1712470244462,-500.0,0.00025638,2]
[321724390,1712470244471,-45.19983633,0.00025638,2]
[321724433,1712470246582,-454.80016367,0.00025638,2]
[321724434,1712470246591,-756.13,0.00025638,2]
[321724435,1712470246600,-500.0,0.00025638,2]
[321724436,1712470246609,-668.71,0.00025638,2]
[321724437,1712470246619,-500.0,0.00025638,2]
[321724438,1712470246628,-560.54,0.00025639,2]
[321724439,1712470246637,-500.0,0.00025639,2]
[321724440,1712470246646,-936.24577625,0.0002564,2]
[321724558,1712471440885,-150.0,0.000253,2]
[321724559,1712471440895,-2934.51551766,0.0002579,2]
[321724560,1712471440905,-620.00011223,0.00025791,2]
[321724561,1712471440914,-4131.2834159,0.00025794,2]
[321724562,1712471440923,-300.0,0.00026458,2]
[321724563,1712471440933,-300.0,0.00026458,2]
[321724564,1712471440943,-3283.38854145,0.00026459,2]
[321724565,1712471440953,-867.82809104,0.00026459,2]
[321724566,1712471440962,-155.17712466,0.00026769,2]
[321724567,1712471440973,-151.0,0.00026786,7]
[321724568,1712471440983,-320.50506334,0.00026794,3]
[321724569,1712471440992,-500.0,0.00026799,2]
[321724570,1712471441002,-500.0,0.00026799,2]
[321724571,1712471441011,-632.13214384,0.00026799,2]
[321724572,1712471441020,-1718.6,0.00026799,2]
[321724573,1712471441030,-3883.63495472,0.000268,2]
[321724574,1712471441039,-5000.0,0.00026894,2]
[321724575,1712471441048,-1572.7699706,0.00027003,2]
[321724576,1712471441058,-155.0,0.00027004,2]
[321724577,1712471441071,-273.15,0.00027004,2]
[321724578,1712471441121,-500.0,0.00027004,2]
[321724579,1712471441132,-500.0,0.00027004,2]
[321724580,1712471441142,-500.0,0.00027004,2]
[321724581,1712471441152,-1372.24,0.00027004,2]
[321724582,1712471441161,-500.0,0.00027004,2]
[321724583,1712471441172,-500.0,0.00027004,2]
[321724584,1712471441182,-500.0,0.00027004,2]
[321724585,1712471441193,-724.62,0.00027004,2]
[321724586,1712471441203,-640.84,0.00027004,2]
[321724587,1712471441213,-500.0,0.00027004,2]
[321724588,1712471441224,-537.19,0.00027072,2]
[321724589,1712471441232,-500.0,0.00027072,2]
[321724590,1712471441242,-1718.6,0.00027073,2]
[321724591,1712471441251,-2336.05846456,0.00027147,2]
[321724592,1712471441264,-81.1609682,0.00027147,2]
[321724593,1712471441275,-2542.2408455,0.00027263,2]
[321724662,1712471443879,-1315.06,0.00027072,2]
[321724664,1712471443889,-1984.69645196,0.00027263,2]
[321724666,1712471443898,-500.0,0.00027278,2]
[321724668,1712471443907,-215.38,0.00027278,2]
[321724670,1712471443916,-500.0,0.00027278,2]
[321724672,1712471443924,-500.0,0.00027278,2]
[321724674,1712471443935,-500.0,0.00027278,2]
[321724676,1712471443945,-724.62,0.00027278,2]
[321724678,1712471443954,-640.84,0.00027278,2]
[321724680,1712471443963,-500.0,0.00027278,2]
[321724682,1712471443973,-151.0,0.00027333,4]
[321724684,1712471443983,-537.19,0.00027346,2]
[321724686,1712471443992,-500.0,0.00027346,2]
[321724688,1712471444001,-1315.06,0.00027346,2]
[321724690,1712471444010,-1718.6,0.00027347,2]
[321724692,1712471444019,-500.0,0.00027397,14]
[321724694,1712471444028,-101.16631212,0.00027397,14]
[321727422,1712472631833,-501.8002263,0.0002516,2]
[321727430,1712472631893,-2432.71529136,0.0002516,2]
[321727432,1712472631904,-886.35005602,0.00025161,2]
[321727434,1712472631913,-247.53692112,0.00025178,2]
[321727436,1712472631922,-500.0,0.00026,2]
[321727438,1712472631931,-500.0,0.000265,2]
[321727440,1712472631940,-500.0,0.00027,2]
[321727442,1712472631949,-1572.7699706,0.00027,2]
[321727444,1712472631959,-200.0,0.0002739,14]
[321727445,1712472631971,-300.0,0.00027395,2]
[321727447,1712472631980,-280.44193044,0.00027399,3]
[321727449,1712472631989,-168.288067,0.000274,2]
[321727451,1712472631998,-202.501854,0.000274,2]
[321727453,1712472632007,-300.0,0.00027497,2]
[321727454,1712472632016,-5582.90224634,0.00027498,2]
[321727455,1712472632026,-189.63519246,0.00027499,2]
[321727456,1712472632035,-500.0,0.00027499,14]
[321727457,1712472632044,-150.27,0.00027499,2]
[321727458,1712472632053,-500.0,0.00027499,2]
[321727459,1712472632062,-500.0,0.00027499,2]
[321727460,1712472632071,-500.0,0.00027499,2]
[321727461,1712472632079,-1205.47,0.00027499,2]
[321727462,1712472632088,-500.0,0.00027499,2]
[321727463,1712472632097,-500.0,0.00027499,2]
[321727464,1712472632106,-500.0,0.00027499,2]
[321727465,1712472632115,-500.0,0.00027499,2]
[321727466,1712472632124,-664.24,0.00027499,2]
[321727467,1712472632133,-1280.0,0.00027499,2]
[321727468,1712472632142,-500.0,0.00027499,2]
[321727469,1712472632153,-587.44,0.00027499,2]
[321727470,1712472632162,-500.0,0.00027499,2]
[321727471,1712472632171,-500.0,0.00027499,2]
[321727472,1712472632181,-1004.66841361,0.00027499,2]
[321727473,1712472632190,-500.0,0.00027499,2]
[321727474,1712472632201,-599.32417606,0.00027499,2]
[321727475,1712472632213,-500.0,0.00027499,2]
[321727476,1712472632223,-1503.77,0.00027499,2]
[321727477,1712472632233,-1000.0,0.00027499,7]
[321727478,1712472632244,-799.03914201,0.000275,17]
[321727479,1712472632255,-49710.82168782,0.000275,2]
[321727521,1712472637921,-667.60063284,0.00027499,2]
[321727691,1712472642969,-487.63936716,0.00027499,2]
[321727694,1712472642979,-53379.63509933,0.000275,2]
[321727697,1712472642988,-500.0,0.000275,2]
[321727700,1712472642998,-211.47618057,0.00027535,2]
[321727703,1712472643012,-546.15534021,0.00027535,2]
[321727706,1712472643021,-388.18841436,0.00027535,2]
[321727708,1712472643030,-288.25852322,0.00027535,2]
[321727711,1712472643040,-5812.26757826,0.00027535,2]
[321727714,1712472643054,-688.45259426,0.00027535,2]
[321727717,1712472643063,-282.0779007,0.00027535,2]
[321727720,1712472643073,-947.54275081,0.00027535,2]
[321727723,1712472643082,-570.13,0.00027552,2]
[321727726,1712472643091,-155.4727055,0.00027652,2]
[321727728,1712472643100,-1253.40846375,0.00027652,2]
[321727730,1712472643110,-230.40987733,0.00027653,2]
[321727732,1712472643119,-224.2054183,0.00027654,2]
[321727734,1712472643128,-40405.59030213,0.00027654,2]
[321727736,1712472643137,-156.72188827,0.00027654,2]
[321727738,1712472643146,-151.0,0.00027654,2]
[321727740,1712472643155,-198.537603,0.00027654,2]
[321727741,1712472643166,-151.0,0.00027654,2]
[321727743,1712472643175,-245.20347,0.00027654,2]
[321727745,1712472643184,-151.0,0.00027654,2]
[321727747,1712472643193,-218.80278907,0.00027655,2]
[321727749,1712472643202,-165.33845794,0.00027656,2]
[321727751,1712472643211,-1151.968813,0.00027657,2]
[321727752,1712472643220,-164.173202,0.00027657,2]
[321727754,1712472643229,-285.806618,0.00027657,2]
[321727756,1712472643238,-159.976948,0.00027657,2]
[321727758,1712472643247,-190.537746,0.00027657,2]
[321727760,1712472643257,-221.02362,0.00027657,2]
[321727762,1712472643266,-150.0,0.00027769,2]
[321727763,1712472643275,-500.0,0.00027773,14]
[321727765,1712472643284,-151.0,0.00027773,2]
[321727767,1712472643296,-151.0,0.00027773,2]
[321727769,1712472643307,-500.0,0.00027773,2]
[321727771,1712472643318,-500.0,0.00027773,2]
[321727773,1712472643330,-500.0,0.00027773,2]
[321727776,1712472643342,-249.0,0.00027773,2]
[321727778,1712472643353,-500.0,0.00027773,2]
[321727780,1712472643364,-664.24,0.00027773,2]
[321727782,1712472643374,-1280.0,0.00027773,2]
[321727784,1712472643384,-307.53,0.00027773,2]
[321727786,1712472643393,-587.44,0.00027773,2]
[321727788,1712472643403,-500.0,0.00027773,2]
[321727790,1712472643415,-500.0,0.00027773,2]
[321727792,1712472643426,-500.0,0.00027773,2]
[321727794,1712472643437,-1503.77,0.00027773,2]
[321727796,1712472643449,-1000.0,0.00027773,7]
[321727798,1712472643459,-1155.24,0.00027773,2]
[321727799,1712472643470,-570.13,0.00027826,2]
[321727800,1712472643481,-155.42438467,0.00027887,2]
[321727801,1712472643492,-1500.0,0.000279,2]
[321727802,1712472643502,-1000.0,0.00028,2]
[321727803,1712472643513,-1000.0,0.00028,2]
[321727804,1712472643524,-1000.0,0.00028,2]
[321727805,1712472643535,-1000.0,0.00028,2]
[321727806,1712472643546,-1000.0,0.00028,2]
[321727807,1712472643556,-5060.78330053,0.00028,2]
[321727808,1712472643566,-90755.87552139,0.00028,120]
[321727809,1712472643577,-1446.69956059,0.00028,2]
[321727810,1712472643586,-3149.6629218,0.00028,2]
[321727811,1712472643595,-500.0,0.00028,2]
[321727812,1712472643606,-151.0,0.00028,2]
[321727813,1712472643616,-151.0,0.00028,2]
[321727814,1712472643626,-151.0,0.00028,2]
[321727815,1712472643637,-151.0,0.00028,2]
[321727816,1712472643647,-291.3604541,0.00028,2]
[321727817,1712472643658,-1151.968813,0.00028002,2]
[321727818,1712472643668,-285.806618,0.00028002,2]
[321727819,1712472643679,-190.537746,0.00028002,2]
[321727820,1712472643690,-221.02362,0.00028002,2]
[321727821,1712472643701,-402.37886964,0.00028047,14]
[321727822,1712472643711,-151.0,0.00028047,2]
[321727824,1712472643724,-151.0,0.00028047,2]
[321727826,1712472643736,-500.0,0.00028047,2]
[321727828,1712472643746,-500.0,0.00028047,2]
[321727830,1712472643758,-358.2281955,0.00028047,2]
[321727832,1712472643768,-500.0,0.00028047,2]
[321727834,1712472643778,-664.24,0.00028047,2]
[321727836,1712472643789,-1280.0,0.00028047,2]
[321727838,1712472643801,-587.44,0.00028047,2]
[321727841,1712472643812,-500.0,0.00028047,2]
[321727843,1712472643823,-500.0,0.00028047,2]
[321727845,1712472643833,-500.0,0.00028047,2]
[321727847,1712472643844,-1503.77,0.00028047,2]
[321727849,1712472643854,-1000.0,0.00028047,7]
[321727851,1712472643865,-1155.24,0.00028047,2]
[321727854,1712472643875,-570.13,0.000281,2]
[321727856,1712472643885,-151.01057074,0.00028109,2]
[321727858,1712472643896,-151.0,0.00028321,2]
[321727860,1712472643907,-151.0,0.00028321,2]
[321727862,1712472643918,-500.0,0.00028321,2]
[321727864,1712472643928,-500.0,0.00028321,2]
[321727866,1712472643938,-500.0,0.00028321,2]
[321727868,1712472643949,-664.24,0.00028321,2]
[321727871,1712472643960,-1280.0,0.00028321,2]
[321727873,1712472643971,-587.44,0.00028321,2]
[321727875,1712472643982,-500.0,0.00028321,2]
[321727877,1712472643992,-500.0,0.00028321,2]
[321727879,1712472644003,-500.0,0.00028321,2]
[321727881,1712472644014,-1503.77,0.00028321,2]
[321727884,1712472644025,-1000.0,0.00028321,7]
[321727886,1712472644035,-1155.24,0.00028321,2]
[321727888,1712472644045,-1151.968813,0.00028348,2]
[321727890,1712472644054,-285.806618,0.00028348,2]
[321727892,1712472644064,-190.537746,0.00028348,2]
[321727894,1712472644074,-221.02362,0.00028348,2]
[321727896,1712472644084,-570.13,0.00028374,2]
[321727898,1712472644095,-500.0,0.000285,2]
[321727900,1712472644105,-151.0,0.00028595,2]
[321727902,1712472644115,-151.0,0.00028595,2]
[321727905,1712472644126,-500.0,0.00028595,2]
[321727907,1712472644135,-500.0,0.00028595,2]
[321727909,1712472644145,-500.0,0.00028595,2]
[321727911,1712472644155,-664.24,0.00028595,2]
[321727913,1712472644166,-1280.0,0.00028595,2]
[321727915,1712472644178,-587.44,0.00028595,2]
[321727917,1712472644189,-500.0,0.00028595,2]
[321727919,1712472644199,-500.0,0.00028595,2]
[321727921,1712472644208,-500.0,0.00028595,2]
[321727923,1712472644218,-1503.77,0.00028595,2]
[321727925,1712472644227,-1000.0,0.00028595,7]
[321727927,1712472644238,-1155.24,0.00028595,2]
[321727930,1712472644247,-570.13,0.00028648,2]
[321727932,1712472644257,-1151.968813,0.00028694,2]
[321727934,1712472644268,-285.806618,0.00028694,2]
[321727936,1712472644278,-190.537746,0.00028694,2]
[321727938,1712472644288,-221.02362,0.00028694,2]
[321727940,1712472644299,-155.81897531,0.00028762,3]
[321727942,1712472644311,-150.0,0.00028769,2]
[321727945,1712472644321,-102843.13144421,0.0002877,2]
[321727947,1712472644332,-63474.85810734,0.0002877,2]
[321727949,1712472644341,-151.0,0.0002877,2]
[321727951,1712472644351,-151.0,0.0002877,2]
[321727953,1712472644361,-151.0,0.0002877,2]
[321727955,1712472644371,-151.0,0.0002877,2]
[321727957,1712472644380,-500.0,0.00028869,2]
[321727959,1712472644389,-500.0,0.00028869,2]
[321727961,1712472644400,-500.0,0.00028869,2]
[321727963,1712472644410,-664.24,0.00028869,2]
[321727965,1712472644421,-1280.0,0.00028869,2]
[321727967,1712472644431,-587.44,0.00028869,2]
[321727970,1712472644442,-500.0,0.00028869,2]
[321727972,1712472644452,-500.0,0.00028869,2]
[321727974,1712472644462,-500.0,0.00028869,2]
[321727976,1712472644473,-1503.77,0.00028869,2]
[321727978,1712472644484,-477.28878406,0.00028869,7]
[321727980,1712472644494,-1155.24,0.00028869,2]
[321727982,1712472644503,-570.13,0.00028922,2]
[321727984,1712472644513,-840.32737417,0.00029,2]
[321727986,1712472644523,-500.0,0.00029,2]
[321727989,1712472644533,-151.0,0.00029,2]
[321727991,1712472644543,-151.0,0.00029,2]
[321727993,1712472644553,-164.173202,0.00029039,2]
[321727995,1712472644563,-1151.968813,0.00029039,2]
[321727997,1712472644573,-285.806618,0.00029039,2]
[321727999,1712472644583,-190.537746,0.00029039,2]
[321728015,1712472644717,-221.02362,0.00029039,2]
[321728017,1712472644731,-262.67712,0.00029046,2]
[321728019,1712472644740,-1660.4696,0.00029046,2]
[321728021,1712472644749,-500.0,0.00029143,2]
[321728023,1712472644758,-500.0,0.00029143,2]
[321728025,1712472644768,-500.0,0.00029143,2]
[321728027,1712472644777,-664.24,0.00029143,2]
[321728029,1712472644786,-1280.0,0.00029143,2]
[321728031,1712472644795,-587.44,0.00029143,2]
[321728033,1712472644807,-500.0,0.00029143,2]
[321728035,1712472644816,-500.0,0.00029143,2]
[321728037,1712472644826,-500.0,0.00029143,2]
[321728039,1712472644836,-1503.77,0.00029143,2]
[321728041,1712472644845,-1155.24,0.00029143,2]
[321728043,1712472644855,-570.13,0.00029196,2]
[321728045,1712472644865,-153.0,0.00029397,2]
[321728047,1712472644875,-262.67712,0.00029409,2]
[321728049,1712472644884,-1660.4696,0.00029409,2]
[321728051,1712472644893,-500.0,0.00029417,2]
[321728053,1712472644903,-500.0,0.00029417,2]
[321728055,1712472644913,-303.05689682,0.00029417,2]
[321728057,1712472644922,-664.24,0.00029417,2]
[321728059,1712472644931,-1280.0,0.00029417,2]
[321728061,1712472644941,-587.44,0.00029417,2]
[321728063,1712472644950,-500.0,0.00029417,2]
[321728065,1712472644960,-500.0,0.00029417,2]
[321728067,1712472644970,-500.0,0.00029417,2]
[321728069,1712472644979,-1503.77,0.00029417,2]
[321728071,1712472644988,-1155.24,0.00029417,2]
[321728073,1712472644997,-570.13,0.0002947,2]
[321728075,1712472645006,-5380.46051366,0.000295,2]
[321728077,1712472645015,-500.0,0.000295,2]
[321728079,1712472645025,-5000.0,0.00029683,2]
[321728081,1712472645035,-500.0,0.00029691,2]
[321728083,1712472645044,-500.0,0.00029691,2]
[321728085,1712472645053,-664.24,0.00029691,2]
[321728087,1712472645062,-1280.0,0.00029691,2]
[321728089,1712472645072,-587.44,0.00029691,2]
[321728091,1712472645080,-500.0,0.00029691,2]
[321728093,1712472645089,-500.0,0.00029691,2]
[321728095,1712472645098,-500.0,0.00029691,2]
[321728097,1712472645108,-1503.77,0.00029691,2]
[321728099,1712472645117,-1155.24,0.00029691,2]
[321728101,1712472645126,-420.0,0.00029712,2]
[321728103,1712472645135,-202.6555302,0.00029726,2]
[321728105,1712472645144,-202.6555302,0.00029726,2]
[321728107,1712472645153,-202.6555302,0.00029726,2]
[321728109,1712472645163,-202.6555302,0.00029726,2]
[321728111,1712472645173,-202.6555302,0.00029726,2]
[321728113,1712472645183,-202.6555302,0.00029726,2]
[321728115,1712472645193,-202.6555302,0.00029726,2]
[321728117,1712472645203,-202.6555302,0.00029726,2]
[321728119,1712472645214,-202.6555302,0.00029726,2]
[321728121,1712472645224,-202.6555302,0.00029726,2]
[321728123,1712472645234,-202.6555302,0.00029726,2]
[321728125,1712472645244,-202.6555302,0.00029726,2]
[321728127,1712472645255,-202.6555302,0.00029726,2]
[321728129,1712472645265,-202.6555302,0.00029726,2]
[321728131,1712472645276,-202.6555302,0.00029726,2]
[321728133,1712472645286,-202.6555302,0.00029726,2]
[321728135,1712472645296,-570.13,0.00029744,2]
[321728137,1712472645307,-150.0,0.00029769,2]
[321728139,1712472645317,-262.67712,0.00029772,2]
[321728142,1712472645327,-1660.4696,0.00029772,2]
[321728145,1712472645336,-1774.22901678,0.0002978,10]
[321728148,1712472645346,-5242.30201293,0.00029887,2]
[321728150,1712472645355,-500.0,0.00029965,2]
[321728152,1712472645365,-500.0,0.00029965,2]
[321728154,1712472645374,-664.24,0.00029965,2]
[321728156,1712472645383,-1280.0,0.00029965,2]
[321728159,1712472645392,-587.44,0.00029965,2]
[321728161,1712472645402,-500.0,0.00029965,2]
[321728165,1712472645414,-500.0,0.00029965,2]
[321728167,1712472645423,-500.0,0.00029965,2]
[321728170,1712472645432,-1503.77,0.00029965,2]
[321728173,1712472645442,-1155.24,0.00029965,2]
[321728176,1712472645451,-23792.57318909,0.00029987,2]
[321728178,1712472645460,-1078.64416877,0.0003,2]
[321728180,1712472645470,-35787.28206949,0.0003,5]
[321728182,1712472645479,-9519.37579652,0.0003,2]
[321728184,1712472645490,-574.64960889,0.0003,2]
[321728187,1712472645500,-155.41098813,0.0003,4]
[321728189,1712472645510,-155.12565178,0.0003,4]
[321728190,1712472645519,-600.50428321,0.0003,2]
[321728192,1712472645529,-347554.99123575,0.0003,7]
[321728195,1712472645539,-155.47187932,0.0003,4]
[321728196,1712472645549,-276.90526712,0.0003,2]
[321728198,1712472645558,-208084.91439555,0.0003,7]
[321728200,1712472645569,-33271.40708778,0.0003,7]
[321728202,1712472645578,-1500.0,0.0003,2]